{"text_format":"2","workbook":"xlsx","n_sheets":1,"sheets":["Sheet1"],"not_rendered":{"charts":0,"images":0,"macros":0,"external_links":0,"defined_names":0,"comments":1,"pivot_tables":0},"unopened":[],"bounds":{"document_bytes":16777216,"sheet_cells":100000,"run_cost":"one","rows_first":2000,"rows_last":500,"rows_between":2000,"halvings":0,"cell_chars":16384,"cell_head_chars":4096},"cells_cut":0,"cells_raw":0,"read":"whole","date_system":"1900"}

{"sheet":"Sheet1","index":0,"n_rows":9,"n_cols":10,"rows_kept":9,"cut":false,"hidden":false,"merged":[]}
["章节ID","章节名称Lang","章节名称","章节背景图","章节图标","前置关卡ID","开始关卡ID","结束关卡ID"," 奖励库ID","章节预制体名"]
[101,"Adventure_Chapter_1","荒野要塞","Adventure_Map_1","ChapterCard_Level_1",null,1011,1018,1001,"Level1Widget"]
[102,"Adventure_Chapter_2","峡谷要塞","Adventure_Map_1","ChapterCard_Level_1",{"$f":"H2","v":1018},{"$f":"G2+10","v":1021},{"$f":"H2+10","v":1028},1002,"Level2Widget"]
[103,"Adventure_Chapter_3","雪地要塞","Adventure_Map_1","ChapterCard_Level_1",{"$f":"H3","v":1028},{"$f":"G3+10","v":1031},{"$f":"H3+10","v":1038},1003,"Level3Widget"]
[104,"Adventure_Chapter_4","沙漠要塞","Adventure_Map_1","ChapterCard_Level_1",1038,1041,1048,1004,"Level4Widget"]
[105,"Adventure_Chapter_5","流寇营地","Adventure_Map_1","ChapterCard_Level_1",1048,1051,1058,1005,"Level5Widget"]
[106,"Adventure_Chapter_6","囚徒刑场","Adventure_Map_1","ChapterCard_Level_1",1058,1061,1068,1006,"Level6Widget"]
[107,"Adventure_Chapter_7","叛军要塞","Adventure_Map_1","ChapterCard_Level_1",1068,1071,1078,1007,"Level7Widget"]
[108,"Adventure_Chapter_8","异教徒祭坛","Adventure_Map_1","ChapterCard_Level_1",1078,1081,1088,1008,"Level8Widget"]